bitfinex-derivatives/quotes_SOLF0:USTF0_20250425
["timestamp","ask_amount","ask_price","bid_price","bid_amount"]
[1745596037008,27.49631966,153.03,153.0,6.5309]
[1745596037215,27.49631966,153.03,152.97,1.8908]
[1745596037513,27.49631966,153.0,152.97,1.8908]
[1745596037713,27.49631966,153.0,152.98,6.532]
[1745596038013,6.5303,153.02,152.97,1.8908]
[1745596038209,27.49631966,153.03,152.97,1.8908]
[1745596038410,32.72,153.05,152.97,1.8908]
[1745596038617,32.72,153.05,152.98,2.0099]
[1745596039004,27.49631966,153.03,152.97,1.8908]
[1745596039212,34.02631966,153.03,153.0,6.5309]
[1745596039422,27.49631966,153.03,152.97,1.8908]
[1745596039717,27.49631966,153.03,153.01,6.5304]
[1745596040212,32.72,153.05,152.97,1.8908]
[1745596040716,27.49631966,153.03,152.97,1.8908]
[1745596041307,34.02621966,153.03,152.98,6.5317]
[1745596041512,27.49631966,153.03,152.97,1.8908]
[1745596041916,27.49631966,153.03,152.97,8.4231]
[1745596042121,27.49631966,153.03,152.97,1.8908]
[1745596043325,6.5306,153.02,152.97,1.8908]
[1745596044319,27.49631966,153.03,152.96,37.60981]
[1745596044619,1.9507,153.02,152.96,37.60981]
[1745596045019,6.531,153.01,152.98,6.5317]
[1745596045719,8.4812,153.02,152.99,6.5315]
[1745596046021,27.49631966,153.03,152.96,37.60981]
[1745596046215,39.2493,153.05,153.02,6.5301]
[1745596046426,32.72,153.05,152.96,37.60981]
[1745596046916,6.5297,153.04,153.01,6.5307]
[1745596047118,27.49631966,153.03,152.96,37.60981]
[1745596049121,34.02651966,153.03,153.0,6.5311]
[1745596049422,27.49631966,153.03,152.96,37.60981]
[1745596049815,27.49631966,153.03,153.01,6.5307]
[1745596050016,27.49631966,153.03,152.96,37.60981]
[1745596050421,34.02641966,153.03,153.0,6.5308]
[1745596050723,27.49631966,153.03,153.0,6.5308]
[1745596050922,32.72,153.05,152.96,37.60981]
[1745596051517,39.2494,153.05,152.96,37.60981]
[1745596051822,32.72,153.05,152.96,37.60981]
[1745596052018,6.5297,153.04,152.96,37.60981]
[1745596052218,32.72,153.05,152.96,37.60981]
[1745596053826,32.72,153.05,152.97,1.9221]
[1745596054015,32.72,153.05,152.97,29.41841966]
[1745596054219,32.72,153.05,152.98,1.9345]
[1745596054425,32.72,153.05,152.99,2.021]
[1745596055222,39.2493,153.05,152.99,2.021]
[1745596055427,32.72,153.05,152.99,2.021]
[1745596056327,60.21631966,153.05,152.99,2.021]
[1745596058624,32.72,153.05,152.99,2.021]
[1745596059428,60.21631966,153.05,152.99,2.021]
[1745596059731,6.5306,153.02,152.99,2.021]
[1745596060030,60.21631966,153.05,152.99,2.021]
[1745596060231,32.72,153.05,152.99,2.021]
[1745596061332,6.5302,153.03,152.99,2.021]
[1745596061527,32.72,153.05,152.99,2.021]
[1745596061833,6.5301,153.03,152.99,2.021]
[1745596062335,6.5307,153.02,152.99,2.021]
[1745596063039,32.72,153.05,152.99,2.021]
[1745596063327,1.9531,153.08,153.0,27.49631966]
[1745596063536,6.5285,153.07,153.04,6.5292]
[1745596063725,1.9531,153.08,153.0,31.50421966]
[1745596063927,29.44941966,153.08,152.99,2.021]
[1745596064128,31.48991966,153.08,153.0,6.531]
[1745596065134,6.53,153.03,153.0,6.531]
[1745596065635,27.49631966,153.05,152.99,8.5524]
[1745596065835,6.5306,153.02,152.99,2.021]
[1745596066025,27.49631966,153.05,152.99,2.021]
[1745596066232,6.531,153.01,152.96,37.60981]
[1745596066731,6.5314,153.0,152.96,37.60981]
[1745596067338,6.531,153.01,152.96,37.60981]
[1745596067538,27.49631966,153.02,152.96,37.60981]
[1745596067739,27.49631966,153.02,152.97,6.5323]
[1745596068541,27.49631966,153.02,152.98,6.5319]
[1745596068741,27.49631966,153.02,152.96,37.60981]
[1745596068934,32.64,153.04,152.96,37.60981]
[1745596069338,6.5306,153.02,152.96,37.60981]
[1745596069937,6.5306,153.02,152.99,6.5314]
[1745596070540,6.531,153.01,152.98,6.5319]
[1745596070741,27.49631966,153.02,152.96,37.60981]
[1745596071244,6.5315,153.0,152.97,6.5325]
[1745596071440,27.49631966,153.02,152.97,6.5325]
[1745596071741,6.5315,153.0,152.98,6.532]
[1745596071942,27.49631966,153.02,152.98,6.532]
[1745596072143,27.49631966,153.02,152.96,37.60981]
[1745596072440,6.5315,153.0,152.97,6.5323]
[1745596073842,6.5315,153.0,152.98,6.532]
[1745596074043,6.5315,153.0,152.96,37.60981]
[1745596074344,6.5315,153.0,152.98,6.532]
[1745596075144,6.5315,153.0,152.97,6.5323]
[1745596075443,6.5315,153.0,152.96,37.60981]
[1745596075644,6.531,153.01,152.96,37.60981]
[1745596075942,32.64,153.04,152.96,37.60981]
[1745596076444,32.64,153.04,152.99,6.5314]
[1745596076845,32.64,153.04,152.96,37.60981]
[1745596077534,6.5302,153.03,152.96,37.60981]
[1745596078039,32.64,153.04,152.97,27.49631966]
[1745596078344,32.64,153.04,152.98,2.059]
[1745596079044,32.64,153.04,153.02,6.5301]
[1745596079236,6.5292,153.05,153.02,6.5301]
[1745596079443,6.5288,153.06,152.98,3.9616]
[1745596080243,6.5288,153.06,153.04,6.5295]
[1745596080444,6.5283,153.07,153.04,6.5295]
[1745596081845,32.54,153.09,153.0,27.49631966]
[1745596082045,32.54,153.09,153.01,1.9661]
[1745596083446,32.54,153.09,153.07,6.5281]
[1745596084453,39.0674,153.09,153.06,6.5283]
[1745596084843,32.54,153.09,153.06,6.5283]
[1745596085043,32.54,153.09,153.01,1.9661]
[1745596085549,6.5285,153.07,153.01,1.9661]
[1745596086053,6.5285,153.07,153.04,6.5293]
[1745596086253,32.54,153.09,153.01,1.9661]
[1745596086645,32.54,153.09,153.07,6.5281]
[1745596087249,39.0674,153.09,153.07,6.5281]
[1745596087454,32.54,153.09,153.08,6.5278]
[1745596087949,32.54,153.09,153.07,6.528]
[1745596088344,32.54,153.09,153.02,17.18803951]
[1745596088652,32.54,153.09,153.01,1.9661]
[1745596088947,6.5285,153.07,153.01,1.9661]
[1745596090246,6.5286,153.06,153.03,6.5296]
[1745596090450,17.18803951,153.08,153.01,1.9661]
[1745596090749,6.5284,153.07,153.04,6.5293]
[1745596091049,17.18803951,153.08,153.01,1.9661]
[1745596091445,17.18803951,153.08,153.04,6.5294]
[1745596091446,6.5285,153.07,153.04,6.5294]
[1745596092949,6.5285,153.07,153.05,6.529]
[1745596093547,6.5285,153.07,153.04,6.5293]
[1745596093945,17.18803951,153.05,152.96,37.60981]
[1745596094141,17.18803951,153.02,152.96,37.60981]
[1745596094346,6.5317,152.99,152.96,37.60981]
[1745596094543,17.18803951,153.02,152.96,37.60981]
[1745596094747,17.18803951,153.0,152.96,37.60981]
[1745596095152,17.18803951,152.98,152.96,37.60981]
[1745596095752,17.18803951,152.98,152.96,44.14271]
[1745596096254,17.18803951,152.98,152.96,44.14251]
[1745596096450,23.71933951,153.0,152.96,37.60981]
[1745596096652,32.54,152.99,152.96,37.60981]
[1745596096845,17.18803951,152.98,152.96,37.60981]
[1745596097049,6.5325,152.97,152.96,37.60981]
[1745596097553,23.72023951,152.98,152.96,37.60981]
[1745596097747,17.18803951,152.98,152.96,37.60981]
[1745596098649,8.586,152.97,152.96,32.05365999]
[1745596098851,8.586,152.97,152.91,6.5348]
[1745596098852,2.0535,152.97,152.88,32.54]
[1745596099052,2.0535,152.97,152.86,17.18803951]
[1745596099053,17.18803951,152.95,152.86,17.18803951]
[1745596099255,23.72163951,152.95,152.86,17.18803951]
[1745596099755,23.72163951,152.95,152.92,6.5346]
[1745596100354,6.5338,152.94,152.92,6.5346]
[1745596100555,17.18803951,152.95,152.92,6.5346]
[1745596100756,19.24153951,152.97,152.88,17.18803951]
[1745596101251,19.24153951,152.97,152.92,6.5343]
[1745596102449,6.5332,152.96,152.92,6.5343]
[1745596102753,6.5332,152.96,152.93,6.5342]
[1745596104155,25.77413951,152.97,152.94,6.5337]
[1745596104455,2.0535,152.97,152.89,17.18803951]
[1745596104653,2.0535,152.97,152.9,1.9785]
[1745596105756,8.5862,152.97,152.93,6.5339]
[1745596106257,6.5329,152.96,152.92,6.5344]
[1745596106953,19.24153951,152.97,152.91,6.5348]
[1745596107154,19.24153951,152.97,152.9,1.9785]
[1745596107457,6.5336,152.95,152.91,6.535]
[1745596108060,6.5336,152.95,152.92,6.5344]
[1745596108559,6.5336,152.95,152.9,1.9785]
[1745596108858,19.24153951,152.97,152.92,6.5345]
[1745596110162,19.24153951,152.97,152.9,1.9785]
[1745596110459,6.5336,152.95,152.92,6.5346]
[1745596110660,19.24153951,152.97,152.9,1.9785]
[1745596110858,17.18803951,152.95,152.9,1.9785]
[1745596111057,17.18803951,152.95,152.85,17.18803951]
[1745596111357,17.18803951,152.95,152.85,19.05283951]
[1745596111561,6.5344,152.93,152.85,19.05283951]
[1745596112160,17.18803951,152.93,152.85,1.8648]
[1745596112355,17.18803951,152.87,152.78,49.64803951]
[1745596112557,49.64803951,152.87,152.79,1.94]
[1745596113460,6.5379,152.85,152.79,1.94]
[1745596113663,6.5379,152.85,152.81,6.5389]
[1745596113963,17.18803951,152.85,152.79,1.94]
[1745596114153,17.18803951,152.85,152.78,1.8648]
[1745596114559,23.72583951,152.85,152.78,1.8648]
[1745596114759,23.72583951,152.85,152.81,6.5393]
[1745596115261,6.5378,152.85,152.81,6.5393]
[1745596115662,6.5381,152.84,152.8,6.5395]
[1745596115960,6.5381,152.84,152.78,1.8648]
[1745596116157,6.5381,152.84,152.81,6.5391]
[1745596116461,6.5378,152.85,152.78,1.8648]
[1745596116660,6.5378,152.85,152.82,6.5388]
[1745596117863,6.538,152.84,152.81,6.5391]
[1745596118363,6.5378,152.85,152.82,6.5389]
[1745596118657,6.5378,152.85,152.78,1.8648]
[1745596118658,27.59806073,152.86,152.78,1.8648]
[1745596119161,34.13536073,152.86,152.83,6.5382]
[1745596119357,27.59806073,152.86,152.78,1.8648]
[1745596119863,34.13546073,152.86,152.82,6.5385]
[1745596120062,27.59806073,152.86,152.82,6.5385]
[1745596120363,6.5379,152.85,152.81,6.5392]
[1745596120964,6.5381,152.84,152.81,6.5392]
[1745596121163,27.59806073,152.86,152.8,6.5395]
[1745596122064,6.5388,152.83,152.8,6.5395]
[1745596122562,27.59806073,152.86,152.8,6.5395]
[1745596122563,6.5382,152.84,152.8,6.5395]
[1745596123063,6.5385,152.83,152.8,6.5395]
[1745596123263,27.59806073,152.83,152.79,6.5399]
[1745596123465,32.46,152.82,152.74,1.94]
[1745596123668,6.54,152.8,152.77,6.5408]
[1745596123865,32.46,152.82,152.74,1.94]
[1745596124260,6.5399,152.8,152.74,1.94]
[1745596124668,6.5395,152.81,152.74,1.94]
[1745596125265,6.5395,152.81,152.77,6.5406]
[1745596125762,6.5395,152.81,152.74,1.94]
[1745596126157,32.46,152.82,152.74,1.94]
[1745596126366,38.9991,152.82,152.79,6.5401]
[1745596126666,38.9991,152.82,152.74,1.94]
[1745596126867,38.9991,152.82,152.78,6.5404]
[1745596127163,38.9991,152.82,152.74,1.94]
[1745596127367,32.46,152.82,152.74,1.94]
[1745596127669,32.46,152.82,152.74,3.9794]
[1745596127965,38.9989,152.82,152.74,3.9794]
[1745596128165,32.46,152.82,152.74,3.9794]
[1745596128369,38.999,152.82,152.74,3.9794]
[1745596128568,38.999,152.82,152.78,6.5403]
[1745596128868,38.999,152.82,152.74,3.9794]
[1745596129066,32.46,152.82,152.74,3.9794]
[1745596129267,32.46,152.82,152.79,6.5399]
[1745596129771,32.46,152.82,152.8,6.5395]
[1745596129959,32.46,152.82,152.74,3.9794]
[1745596130162,32.46,152.82,152.75,27.59806073]
[1745596130465,32.48,152.86,152.75,27.59806073]
[1745596131063,60.07806073,152.86,152.75,27.59806073]
[1745596131257,60.07806073,152.86,152.74,17.0634]
[1745596132468,6.5383,152.84,152.8,6.5395]
[1745596132770,6.5383,152.84,152.74,17.0634]
[1745596132969,6.5383,152.84,152.8,6.5394]
[1745596133166,6.5383,152.84,152.74,17.0634]
[1745596134372,6.5378,152.85,152.74,17.0634]
[1745596134665,6.5378,152.85,152.81,6.539]
[1745596134869,6.5383,152.84,152.81,6.539]
[1745596135572,6.5383,152.84,152.8,6.5396]
[1745596135771,27.59806073,152.83,152.74,3.9794]
[1745596136072,27.59806073,152.83,152.77,6.5406]
[1745596136269,27.59806073,152.83,152.74,1.94]
[1745596136469,6.5396,152.81,152.74,1.94]
[1745596136667,32.38,152.8,152.74,1.94]
[1745596136862,32.38,152.8,152.77,6.5407]
[1745596137165,32.38,152.8,152.74,1.94]
[1745596137366,32.38,152.8,152.78,6.5404]
[1745596137671,49.63877852,152.8,152.78,6.5404]
[1745596138171,56.17847852,152.8,152.77,6.5408]
[1745596138371,49.63877852,152.8,152.74,1.94]
[1745596138567,17.25877852,152.78,152.76,6.5412]
[1745596138874,17.25877852,152.78,152.73,1.8897]
[1745596139774,49.63877852,152.8,152.73,1.8897]
[1745596139971,32.38,152.8,152.73,19.14847852]
[1745596140169,32.38,152.8,152.75,17.25877852]
[1745596140370,32.38,152.8,152.79,6.5402]
[1745596140570,49.63877852,152.84,152.75,17.25877852]
[1745596140769,49.63877852,152.84,152.76,1.9485]
[1745596140972,49.63877852,152.84,152.83,6.5385]
[1745596141469,32.38,152.84,152.83,6.5385]
[1745596143075,32.38,152.84,152.77,19.16337852]
[1745596143278,49.63877852,152.84,152.77,1.9046]
[1745596143775,17.25877852,152.82,152.76,1.9485]
[1745596143976,17.25877852,152.82,152.73,21.08637852]
[1745596144172,17.25877852,152.8,152.73,3.8276]
[1745596144370,17.25877852,152.78,152.73,1.8897]
[1745596144571,49.63877852,152.78,152.73,1.8897]
[1745596144766,56.17947852,152.78,152.75,6.5417]
[1745596144973,56.17947852,152.78,152.73,1.8897]
[1745596145275,49.63877852,152.78,152.73,1.8897]
[1745596145480,32.38,152.78,152.73,1.8897]
[1745596145676,32.38,152.78,152.73,19.14847852]
[1745596146074,32.38,152.78,152.77,6.541]
[1745596146375,32.38,152.82,152.73,19.14847852]
[1745596146675,32.38,152.82,152.74,1.9681]
[1745596147276,32.38,152.82,152.8,6.5395]
[1745596147776,38.9189,152.82,152.79,6.54]
[1745596148276,56.17767852,152.82,152.79,6.54]
[1745596148777,49.63877852,152.82,152.74,1.9681]
[1745596148972,17.25877852,152.8,152.73,1.8897]
[1745596149174,32.38,152.82,152.73,1.8897]
[1745596149377,6.5411,152.77,152.74,6.5421]
[1745596149573,38.9211,152.77,152.73,1.8897]
[1745596149773,17.25877852,152.76,152.7,2.0528]
[1745596149969,17.25877852,152.76,152.69,4.0043]
[1745596150375,17.25877852,152.74,152.71,6.5436]
[1745596150576,17.25877852,152.74,152.69,2.0664]
[1745596150976,23.80137852,152.74,152.7,6.5437]
[1745596151480,23.80137852,152.74,152.71,6.5435]
[1745596151780,17.25877852,152.76,152.69,2.0664]
[1745596151982,17.25877852,152.76,152.74,6.5419]
[1745596152182,32.38,152.77,152.71,17.25877852]
[1745596152476,471.02,152.85,152.81,6.5391]
[1745596152477,59.71581541,152.83,152.81,6.5391]
[1745596152676,59.71581541,152.83,152.77,2.0664]
[1745596153079,59.71581541,152.83,152.82,6.5389]
[1745596154672,503.4,152.85,152.82,6.5389]
[1745596154984,17.25877852,152.84,152.81,6.5392]
[1745596155280,23.79797852,152.82,152.73,3.9074]
[1745596155480,23.79797852,152.82,152.73,5.9099]
[1745596155682,34.15054767,152.82,152.73,5.9099]
[1745596155978,34.15054767,152.82,152.78,6.5403]
[1745596156182,27.61134767,152.82,152.73,5.9099]
[1745596156872,6.5382,152.84,152.8,6.5396]
[1745596157281,6.5382,152.84,152.73,33.52124767]
[1745596157677,6.5382,152.84,152.8,6.5394]
[1745596158278,6.5388,152.83,152.79,6.54]
[1745596158477,27.61134767,152.82,152.73,3.8767]
[1745596158679,1.9817,152.81,152.73,3.8767]
[1745596158875,32.38,152.8,152.76,6.5412]
[1745596159382,32.38,152.8,152.77,6.5409]
[1745596159582,32.38,152.8,152.73,2.0025]
[1745596160079,27.61134767,152.79,152.69,4.0212]
[1745596160279,27.61134767,152.79,152.69,3.917]
[1745596160479,34.15164767,152.79,152.69,3.917]
[1745596160680,32.38,152.8,152.69,3.917]
[1745596161382,38.9197,152.8,152.77,6.5407]
[1745596163485,32.38,152.8,152.78,6.5405]
[1745596163886,32.38,152.8,152.7,27.61134767]
[1745596164488,6.5404,152.79,152.76,6.5414]
[1745596164681,32.38,152.8,152.69,17.0057]
[1745596164884,27.61134767,152.79,152.69,17.0057]
[1745596165086,34.15164767,152.79,152.76,6.5412]
[1745596165287,32.38,152.8,152.69,17.0057]
[1745596165590,32.38,152.8,152.78,6.5406]
[1745596165888,32.38,152.8,152.7,27.61134767]
[1745596166089,32.38,152.8,152.71,45.3672]
[1745596166278,32.38,152.8,152.79,6.5402]
[1745596167093,32.38,152.8,152.72,1.8823]
[1745596168290,6.5404,152.79,152.76,6.5411]
[1745596168591,32.38,152.8,152.71,32.28]
[1745596168889,6.5409,152.78,152.75,6.5416]
[1745596169388,32.38,152.8,152.69,3.917]
[1745596169588,6.5404,152.79,152.69,3.917]
[1745596169792,32.38,152.8,152.69,3.917]
[1745596170089,38.92,152.8,152.77,6.541]
[1745596170389,32.38,152.8,152.69,3.917]
[1745596170589,6.5402,152.79,152.76,6.541]
[1745596170990,32.38,152.8,152.69,3.917]
[1745596171892,27.61134767,152.78,152.69,3.917]
[1745596172092,27.61134767,152.75,152.69,1.967]
[1745596172291,32.28,152.74,152.69,1.967]
[1745596172488,32.28,152.74,152.72,6.5431]
[1745596174298,38.8224,152.74,152.71,6.5434]
[1745596174694,38.8224,152.74,152.69,1.967]
[1745596174896,38.8224,152.74,152.71,6.5433]
[1745596175287,27.61134767,152.72,152.59,32.28]
[1745596175500,27.61134767,152.72,152.6,1.8794]
[1745596175697,6.5445,152.69,152.6,1.8794]
[1745596175907,32.28,152.68,152.65,6.5458]
[1745596176200,32.28,152.68,152.6,1.8794]
[1745596176406,38.8249,152.68,152.64,6.5465]
[1745596177700,38.8249,152.68,152.65,6.5461]
[1745596177701,32.28,152.68,152.65,6.5461]
[1745596177894,32.28,152.68,152.6,1.8794]
[1745596178406,6.5454,152.67,152.62,6.5473]
[1745596178595,6.5454,152.67,152.6,1.8794]
[1745596178799,6.5454,152.67,152.62,6.5474]
[1745596178995,6.5454,152.67,152.6,1.8794]
[1745596179504,6.5454,152.67,152.62,6.5474]
[1745596179701,32.28,152.68,152.6,1.8794]
[1745596179903,2.042,152.67,152.62,6.5474]
[1745596180098,27.61134767,152.66,152.53,59.89134767]
[1745596180395,6.5473,152.63,152.54,2.0472]
[1745596180595,473.222,152.67,152.54,2.0472]
[1745596180800,32.28,152.66,152.56,27.61134767]
[1745596180997,32.28,152.66,152.62,6.5472]
[1745596182009,32.28,152.66,152.61,6.5477]
[1745596182405,27.61134767,152.64,152.54,2.0472]
[1745596182601,27.61134767,152.64,152.59,6.5485]
[1745596182803,27.61134767,152.64,152.54,2.0472]
[1745596183099,34.15814767,152.64,152.59,6.5484]
[1745596183303,6.5468,152.64,152.54,2.0472]
[1745596183597,32.28,152.66,152.59,6.5485]
[1745596183795,32.28,152.66,152.54,2.0472]
[1745596184806,500.83334767,152.67,152.56,27.61134767]
[1745596185009,38.8459,152.66,152.62,6.5472]
[1745596185308,32.3,152.66,152.56,27.61134767]
[1745596185508,6.5463,152.65,152.61,6.5476]
[1745596185806,6.5463,152.65,152.56,27.61134767]
[1745596186208,6.5463,152.65,152.62,6.5474]
[1745596186408,32.3,152.66,152.54,2.0472]
[1745596187307,17.29014454,152.66,152.57,17.29014454]
[1745596187508,32.3,152.65,152.59,17.29014454]
[1745596187808,32.3,152.65,152.6,1.9123]
[1745596188109,32.3,152.65,152.63,6.5468]
[1745596188708,32.3,152.65,152.6,1.9123]
[1745596189309,32.3,152.65,152.61,6.5475]
[1745596189509,32.3,152.65,152.6,1.9123]
[1745596189510,17.29014454,152.64,152.54,17.29014454]
[1745596189707,17.29014454,152.64,152.56,2.0339]
[1745596190015,23.83704454,152.64,152.56,2.0339]
[1745596190510,17.29014454,152.64,152.56,19.32404454]
[1745596190711,32.3,152.65,152.56,19.32404454]
[1745596190913,32.3,152.65,152.63,6.5467]
[1745596191113,473.222,152.67,152.58,17.29014454]
[1745596191310,32.3,152.66,152.58,17.29014454]
[1745596191613,32.3,152.66,152.64,6.5466]
[1745596193415,32.3,152.66,152.65,6.5462]
[1745596194015,32.3,152.66,152.64,6.5464]
[1745596194211,32.3,152.66,152.58,17.29014454]
[1745596194515,32.3,152.66,152.64,6.5463]
[1745596194814,32.3,152.66,152.58,17.29014454]
[1745596195115,32.3,152.66,152.65,6.5462]
[1745596195615,32.3,152.66,152.64,6.5464]
[1745596195913,32.3,152.66,152.58,17.29014454]
[1745596196108,32.3,152.66,152.56,2.0339]
[1745596196305,49.59014454,152.66,152.63,6.5466]
[1745596196506,49.59014454,152.66,152.57,17.29014454]
[1745596197820,32.3,152.66,152.57,17.29014454]
[1745596198318,471.18,152.67,152.59,17.29014454]
[1745596198619,32.2,152.69,152.63,17.29014454]
[1745596198811,32.2,152.69,152.66,6.5455]
[1745596199012,17.29014454,152.68,152.6,1.88]
[1745596199214,17.29014454,152.68,152.6,3.9411]
[1745596199420,17.29014454,152.68,152.65,6.5459]
[1745596200021,17.29014454,152.68,152.66,6.5457]
[1745596200223,23.83514454,152.68,152.6,3.9411]
[1745596200419,17.29014454,152.68,152.6,3.9411]
[1745596200723,17.29014454,152.68,152.66,6.5457]
[1745596200920,17.29014454,152.68,152.6,3.9411]
[1745596201221,17.29014454,152.68,152.65,6.5459]
[1745596201417,23.83504454,152.68,152.65,6.5459]
[1745596201619,17.29014454,152.68,152.6,3.9411]
[1745596201920,23.83524454,152.68,152.6,3.9411]
[1745596202423,32.2,152.69,152.6,3.9411]
[1745596202623,38.7446,152.69,152.6,3.9411]
[1745596202823,38.7446,152.69,152.66,6.5454]
[1745596203222,32.2,152.69,152.6,3.9411]
[1745596203924,32.2,152.69,152.61,17.29014454]
[1745596204221,32.2,152.69,152.68,6.5449]
[1745596204416,471.44,152.74,152.65,17.29014454]
[1745596204622,503.64,152.74,152.67,17.29014454]
[1745596204820,32.2,152.74,152.73,6.5427]
[1745596205223,34.1395,152.78,152.71,17.29014454]
[1745596205421,34.1395,152.78,152.77,6.541]
[1745596205722,51.42964454,152.78,152.69,49.49014454]
[1745596205924,17.29014454,152.76,152.69,32.2]
[1745596206124,17.29014454,152.76,152.68,17.29014454]
[1745596206324,23.83184454,152.76,152.72,6.5429]
[1745596206623,51.42964454,152.78,152.68,17.29014454]
[1745596207125,6.5411,152.77,152.68,17.29014454]
[1745596207319,51.42964454,152.78,152.7,17.29014454]
[1745596207520,34.1395,152.78,152.7,17.29014454]
[1745596207722,17.29014454,152.8,152.72,17.29014454]
[1745596207916,32.2,152.81,152.73,1.9856]
[1745596208317,32.2,152.81,152.74,17.29014454]
[1745596208824,32.2,152.81,152.78,6.5403]
[1745596209427,38.7397,152.81,152.78,6.5403]
[1745596209626,32.2,152.81,152.77,6.541]
[1745596209823,32.2,152.81,152.73,1.9856]
[1745596210523,17.29014454,152.85,152.82,6.5389]
[1745596210729,32.18,152.85,152.78,17.29014454]
[1745596211131,38.7179,152.85,152.81,6.539]
[1745596211326,32.18,152.85,152.78,17.29014454]
[1745596213126,38.7178,152.85,152.82,6.5386]
[1745596213532,32.18,152.85,152.82,6.5386]
[1745596214133,32.18,152.85,152.81,6.5392]
[1745596214334,32.18,152.85,152.78,17.29014454]
[1745596214729,32.18,152.85,152.82,6.5386]
[1745596215634,38.7179,152.85,152.82,6.5386]
[1745596215835,32.18,152.85,152.82,6.5386]
[1745596216134,32.18,152.85,152.83,6.5384]
[1745596217429,32.18,152.85,152.84,6.538]
[1745596217836,32.18,152.85,152.78,17.29014454]
[1745596218132,38.7176,152.85,152.82,6.5386]
[1745596218333,38.7176,152.85,152.78,17.29014454]
[1745596218334,32.18,152.85,152.78,17.29014454]
[1745596218534,32.18,152.85,152.84,6.538]
[1745596219037,32.18,152.85,152.83,6.5382]
[1745596219237,32.18,152.85,152.78,17.29014454]
[1745596219638,32.18,152.85,152.82,6.5385]
[1745596219936,32.18,152.85,152.78,17.29014454]
[1745596220637,38.7177,152.85,152.78,17.29014454]
[1745596221740,38.7177,152.85,152.82,6.5386]
[1745596222039,38.7177,152.85,152.78,17.29014454]
[1745596222738,38.7177,152.85,152.82,6.5387]
[1745596223139,32.18,152.85,152.78,17.29014454]
[1745596223738,32.18,152.85,152.79,1.9737]
[1745596224535,34.1123,152.89,152.8,17.29014454]
[1745596224839,32.16,152.89,152.82,17.29014454]
[1745596225343,17.29014454,152.88,152.8,49.45014454]
[1745596225939,6.537,152.87,152.84,6.5378]
[1745596226130,17.29014454,152.88,152.84,6.5378]
[1745596226439,17.29014454,152.88,152.8,49.45014454]
[1745596226635,23.82674454,152.88,152.8,49.45014454]
[1745596227145,23.82674454,152.88,152.85,6.5375]
[1745596227344,32.16,152.89,152.8,49.45014454]
[1745596227537,32.16,152.89,152.82,17.29014454]
[1745596228431,32.16,152.89,152.88,6.5363]
[1745596229133,32.16,152.89,152.82,17.29014454]
[1745596230145,32.16,152.89,152.87,6.5365]
[1745596230545,32.16,152.89,152.82,17.29014454]
[1745596231844,32.16,152.89,152.8,36.1525]
[1745596232044,19.35844454,152.88,152.8,32.16]
[1745596232547,6.5369,152.87,152.84,6.538]
[1745596232943,6.5369,152.87,152.79,1.9737]
[1745596233447,25.89494454,152.88,152.79,1.9737]
[1745596233749,19.35844454,152.88,152.79,1.9737]
[1745596233948,6.537,152.87,152.79,1.9737]
[1745596234344,19.35844454,152.88,152.85,6.5375]
[1745596234651,25.89494454,152.88,152.85,6.5375]
[1745596234841,19.35844454,152.88,152.84,6.5378]
[1745596235047,6.5373,152.86,152.79,1.9737]